[Event "Early-Titled-Tuesday-Blitz-February-06-2024"]
[Site "Chess.com"]
[Date "2024.02.06"]
[Round "9"]
[White "AndresDelgado77"]
[Black "JoliyRoger"]
[Result "0-1"]
[WhiteElo "2351"]
[BlackElo "2500"]
[TimeControl "180+1"]
[EndTime "9:46:17 PST"]
[Termination "JoliyRoger won on time"]

1. e4 {[%clk 0:03:00]} 1... c6 {[%clk 0:02:43.2]} 2. d4 {[%clk 0:02:59.4]} 2...
d5 {[%clk 0:02:40.8]} 3. Nc3 {[%clk 0:02:59.2]} 3... dxe4 {[%clk 0:02:39.3]} 4.
Nxe4 {[%clk 0:02:59.5]} 4... Bf5 {[%clk 0:02:40]} 5. Ng3 {[%clk 0:02:59.3]} 5...
Bg6 {[%clk 0:02:40.6]} 6. h4 {[%clk 0:02:59.9]} 6... h6 {[%clk 0:02:40.5]} 7.
Nf3 {[%clk 0:03:00.5]} 7... Nd7 {[%clk 0:02:39.9]} 8. h5 {[%clk 0:03:00.8]} 8...
Bh7 {[%clk 0:02:40.6]} 9. Bd3 {[%clk 0:03:01.4]} 9... Bxd3 {[%clk 0:02:41.3]}
10. Qxd3 {[%clk 0:03:02]} 10... Qc7 {[%clk 0:02:42.2]} 11. Bd2 {[%clk
0:03:01.4]} 11... e6 {[%clk 0:02:42.5]} 12. Ne4 {[%clk 0:02:58.4]} 12... Ngf6
{[%clk 0:02:42.5]} 13. O-O-O {[%clk 0:02:55.2]} 13... O-O-O {[%clk 0:02:43]} 14.
g3 {[%clk 0:02:54.7]} 14... Nc5 {[%clk 0:02:43.3]} 15. Nxc5 {[%clk 0:02:51.5]}
15... Bxc5 {[%clk 0:02:44.2]} 16. Qc4 {[%clk 0:02:26.2]} 16... Bd6 {[%clk
0:02:41.8]} 17. Qe2 {[%clk 0:02:08.6]} 17... Rhe8 {[%clk 0:02:36.3]} 18. c4
{[%clk 0:02:05.3]} 18... c5 {[%clk 0:02:36]} 19. Kb1 {[%clk 0:02:03.5]} 19...
cxd4 {[%clk 0:02:33.6]} 20. Nxd4 {[%clk 0:02:01.3]} 20... Qc5 {[%clk 0:02:31.4]}
21. Nb5 {[%clk 0:01:48.6]} 21... Bb8 {[%clk 0:02:15.8]} 22. g4 {[%clk
0:01:10.2]} 22... a6 {[%clk 0:02:05.8]} 23. Be3 {[%clk 0:01:07.6]} 23... Qe5
{[%clk 0:02:06.1]} 24. Nd4 {[%clk 0:00:37.9]} 24... Ba7 {[%clk 0:01:29.5]} 25.
c5 {[%clk 0:00:32.5]} 25... Qe4+ {[%clk 0:01:09.4]} 26. Qc2 {[%clk 0:00:22.3]}
26... Qxc2+ {[%clk 0:01:08.1]} 27. Nxc2 {[%clk 0:00:22]} 27... Rxd1+ {[%clk
0:00:58.2]} 28. Rxd1 {[%clk 0:00:21.5]} 28... Nxg4 {[%clk 0:00:58.7]} 29. Rg1
{[%clk 0:00:16.7]} 29... Nxe3 {[%clk 0:00:54.8]} 30. fxe3 {[%clk 0:00:17]} 30...
Rg8 {[%clk 0:00:46.9]} 31. b4 {[%clk 0:00:16.7]} 31... g5 {[%clk 0:00:47]} 32.
Nd4 {[%clk 0:00:15.2]} 32... Bb8 {[%clk 0:00:43]} 33. a4 {[%clk 0:00:11.2]}
33... Be5 {[%clk 0:00:41.8]} 34. Nf3 {[%clk 0:00:11.2]} 34... Bc3 {[%clk
0:00:38.4]} 35. b5 {[%clk 0:00:11.3]} 35... axb5 {[%clk 0:00:38.1]} 36. axb5
{[%clk 0:00:11.3]} 36... f5 {[%clk 0:00:38.8]} 37. Kc2 {[%clk 0:00:10.7]} 37...
Bf6 {[%clk 0:00:39.3]} 38. Kb3 {[%clk 0:00:08.7]} 38... Rd8 {[%clk 0:00:37.9]}
39. Kc4 {[%clk 0:00:07.6]} 39... e5 {[%clk 0:00:32.3]} 40. Ra1 {[%clk
0:00:05.1]} 40... g4 {[%clk 0:00:28.6]} 41. Nd2 {[%clk 0:00:04.1]} 41... g3
{[%clk 0:00:23.1]} 42. Ra8+ {[%clk 0:00:03.8]} 42... Kd7 {[%clk 0:00:23.3]} 43.
Rxd8+ {[%clk 0:00:03.4]} 43... Kxd8 {[%clk 0:00:23.5]} 44. Nf3 {[%clk
0:00:02.9]} 44... e4 {[%clk 0:00:21.9]} 45. Ne1 {[%clk 0:00:03]} 45... Kd7
{[%clk 0:00:13.1]} 46. Kd5 {[%clk 0:00:03.3]} 46... Bc3 {[%clk 0:00:13.3]} 47.
Ng2 {[%clk 0:00:03.1]} 47... Bb4 {[%clk 0:00:10.7]} 48. c6+ {[%clk 0:00:03.5]}
48... bxc6+ {[%clk 0:00:11.2]} 49. bxc6+ {[%clk 0:00:04]} 49... Kc7 {[%clk
0:00:11.6]} 50. Ke6 {[%clk 0:00:04.3]} 50... Kxc6 {[%clk 0:00:10.3]} 51. Kxf5
{[%clk 0:00:04.7]} 51... Kd5 {[%clk 0:00:11.1]} 52. Nf4+ {[%clk 0:00:05]} 52...
Kc4 {[%clk 0:00:09.1]} 53. Ke5 {[%clk 0:00:04.5]} 53... Bd2 {[%clk 0:00:07.2]}
54. Kxe4 {[%clk 0:00:04.8]} 54... Be1 {[%clk 0:00:07.6]} 55. Ng2 {[%clk
0:00:04.8]} 55... Kc5 {[%clk 0:00:07.5]} 56. Kf5 {[%clk 0:00:04.9]} 56... Bd2
{[%clk 0:00:07.1]} 57. e4 {[%clk 0:00:05.3]} 57... Kd6 {[%clk 0:00:07.3]} 58.
e5+ {[%clk 0:00:05.5]} 58... Ke7 {[%clk 0:00:08]} 59. Kg6 {[%clk 0:00:05.7]}
59... Ke6 {[%clk 0:00:07.4]} 60. Nh4 {[%clk 0:00:05.6]} 60... Kxe5 {[%clk
0:00:07.2]} 61. Nf3+ {[%clk 0:00:06]} 61... Kf4 {[%clk 0:00:06.8]} 62. Ng1
{[%clk 0:00:05.1]} 62... Ke4 {[%clk 0:00:06.4]} 63. Nh3 {[%clk 0:00:04.4]} 63...
Kd3 {[%clk 0:00:06.2]} 64. Ng1 {[%clk 0:00:03.7]} 64... Bg5 {[%clk 0:00:05.4]}
65. Nf3 {[%clk 0:00:03]} 65... Be3 {[%clk 0:00:05.9]} 66. Ng1 {[%clk 0:00:02.6]}
66... Kd2 {[%clk 0:00:05.8]} 67. Nh3 {[%clk 0:00:02.4]} 67... Ke2 {[%clk
0:00:06]} 68. Kf5 {[%clk 0:00:02.3]} 68... Kf3 {[%clk 0:00:05.9]} 0-1

[Event "Early-Titled-Tuesday-Blitz-February-06-2024"]
[Site "Chess.com"]
[Date "2024.02.06"]
[Round "9"]
[White "Ruchess27"]
[Black "FM_VS99"]
[Result "0-1"]
[WhiteElo "2451"]
[BlackElo "2611"]
[TimeControl "180+1"]
[EndTime "9:46:19 PST"]
[Termination "FM_VS99 won on time"]

1. d4 {[%clk 0:03:00.9]} 1... Nf6 {[%clk 0:03:00.2]} 2. c4 {[%clk 0:03:01.3]}
2... c5 {[%clk 0:03:00.8]} 3. d5 {[%clk 0:03:01.2]} 3... b5 {[%clk 0:03:01.4]}
4. cxb5 {[%clk 0:03:02.1]} 4... a6 {[%clk 0:03:02]} 5. bxa6 {[%clk 0:03:02.9]}
5... g6 {[%clk 0:03:02.6]} 6. Nc3 {[%clk 0:03:02.9]} 6... Bg7 {[%clk 0:03:03.2]}
7. Nf3 {[%clk 0:03:03.5]} 7... O-O {[%clk 0:03:03.5]} 8. g3 {[%clk 0:03:04.1]}
8... Qa5 {[%clk 0:03:02.7]} 9. Bg2 {[%clk 0:02:56.9]} 9... Ne4 {[%clk
0:02:48.9]} 10. O-O {[%clk 0:02:56.3]} 10... Nxc3 {[%clk 0:02:45.4]} 11. bxc3
{[%clk 0:02:57.2]} 11... Nxa6 {[%clk 0:02:27.1]} 12. Bd2 {[%clk 0:02:39.1]}
12... d6 {[%clk 0:02:24.2]} 13. Qc2 {[%clk 0:02:33.4]} 13... Nc7 {[%clk
0:02:17.3]} 14. e4 {[%clk 0:02:18.3]} 14... Qa4 {[%clk 0:02:14.8]} 15. Rfc1
{[%clk 0:02:07.7]} 15... Bd7 {[%clk 0:02:08]} 16. Bf1 {[%clk 0:01:46]} 16...
Rfb8 {[%clk 0:02:04.2]} 17. Qxa4 {[%clk 0:01:40.6]} 17... Rxa4 {[%clk
0:02:02.7]} 18. Bd3 {[%clk 0:01:35.5]} 18... Rba8 {[%clk 0:01:27.8]} 19. Rcb1
{[%clk 0:01:31.4]} 19... Bg4 {[%clk 0:01:17.2]} 20. Ne1 {[%clk 0:01:14.6]} 20...
c4 {[%clk 0:01:01.4]} 21. Bc2 {[%clk 0:01:11.6]} 21... R4a7 {[%clk 0:01:00.8]}
22. a4 {[%clk 0:00:57.1]} 22... Na6 {[%clk 0:01:00]} 23. Kg2 {[%clk 0:00:38.9]}
23... h5 {[%clk 0:00:59.7]} 24. Nf3 {[%clk 0:00:34.1]} 24... Bxf3+ {[%clk
0:00:50.1]} 25. Kxf3 {[%clk 0:00:34.3]} 25... Rc8 {[%clk 0:00:39.9]} 26. Be3
{[%clk 0:00:26.7]} 26... Nc5 {[%clk 0:00:37]} 27. Bd4 {[%clk 0:00:23.7]} 27...
Bxd4 {[%clk 0:00:14.7]} 28. cxd4 {[%clk 0:00:24.6]} 28... Nd7 {[%clk 0:00:13.1]}
29. Ke3 {[%clk 0:00:21.5]} 29... Kg7 {[%clk 0:00:09.4]} 30. Rb4 {[%clk
0:00:21.3]} 30... Nf6 {[%clk 0:00:08.3]} 31. f3 {[%clk 0:00:20.4]} 31... Ra5
{[%clk 0:00:08.4]} 32. Ra3 {[%clk 0:00:19.3]} 32... e6 {[%clk 0:00:05.2]} 33.
dxe6 {[%clk 0:00:18.2]} 33... fxe6 {[%clk 0:00:06.1]} 34. Rb5 {[%clk 0:00:14.1]}
34... Rca8 {[%clk 0:00:05.5]} 35. Rxa5 {[%clk 0:00:13.7]} 35... Rxa5 {[%clk
0:00:06.4]} 36. Ra2 {[%clk 0:00:09.2]} 36... d5 {[%clk 0:00:05.3]} 37. e5 {[%clk
0:00:07.3]} 37... Nd7 {[%clk 0:00:04.8]} 38. Rb2 {[%clk 0:00:08]} 38... Ra7
{[%clk 0:00:05.2]} 39. Rb5 {[%clk 0:00:07.8]} 39... Kf7 {[%clk 0:00:05.1]} 40.
Kd2 {[%clk 0:00:07.7]} 40... g5 {[%clk 0:00:05.6]} 41. Kc3 {[%clk 0:00:07]}
41... Ke7 {[%clk 0:00:06.3]} 42. Kb4 {[%clk 0:00:04.9]} 42... h4 {[%clk
0:00:06.6]} 43. a5 {[%clk 0:00:04.3]} 43... Kd8 {[%clk 0:00:05.9]} 44. Ka4
{[%clk 0:00:01.9]} 44... Kc7 {[%clk 0:00:06.1]} 45. Kb4 {[%clk 0:00:02.2]} 45...
Nb8 {[%clk 0:00:04.2]} 46. Bg6 {[%clk 0:00:02.3]} 46... Nc6+ {[%clk 0:00:03.6]}
47. Kc5 {[%clk 0:00:02.2]} 47... Rxa5 {[%clk 0:00:04]} 48. Rxa5 {[%clk
0:00:02.3]} 48... Nxa5 {[%clk 0:00:04.9]} 49. Bf7 {[%clk 0:00:02.2]} 49... Nb3+
{[%clk 0:00:03.6]} 50. Kb4 {[%clk 0:00:02.2]} 50... Nxd4 {[%clk 0:00:03.8]} 51.
Kc3 {[%clk 0:00:02.4]} 51... Nxf3 {[%clk 0:00:03.1]} 52. Bxe6 {[%clk 0:00:02.7]}
52... Kc6 {[%clk 0:00:03.4]} 53. gxh4 {[%clk 0:00:02.7]} 53... gxh4 {[%clk
0:00:03.3]} 54. h3 {[%clk 0:00:02.9]} 54... Nxe5 {[%clk 0:00:03.4]} 55. Kd4
{[%clk 0:00:03.3]} 55... Nf3+ {[%clk 0:00:04.1]} 56. Ke3 {[%clk 0:00:02.3]}
56... Ng5 {[%clk 0:00:02.8]} 57. Bf5 {[%clk 0:00:02.4]} 57... Kd6 {[%clk
0:00:03.2]} 58. Kd4 {[%clk 0:00:02.7]} 58... Ne6+ {[%clk 0:00:03.4]} 59. Kc3
{[%clk 0:00:02.6]} 59... Ke5 {[%clk 0:00:03.9]} 60. Bg4 {[%clk 0:00:02.5]} 60...
Nf4 {[%clk 0:00:04.2]} 61. Bd7 {[%clk 0:00:02.1]} 61... Ng2 {[%clk 0:00:03.5]}
62. Bg4 {[%clk 0:00:01.4]} 62... Ne3 {[%clk 0:00:03.4]} 63. Bd7 {[%clk
0:00:01.6]} 63... Nf5 {[%clk 0:00:03.8]} 64. Bc8 {[%clk 0:00:01.8]} 64... Nd6
{[%clk 0:00:03.9]} 65. Bd7 {[%clk 0:00:02.1]} 65... d4+ {[%clk 0:00:04.5]} 66.
Kd2 {[%clk 0:00:02.4]} 66... Ke4 {[%clk 0:00:05.2]} 67. Bg4 {[%clk 0:00:02]}
67... Kf4 {[%clk 0:00:05.8]} 68. Bd7 {[%clk 0:00:01.4]} 68... Kg3 {[%clk
0:00:06.2]} 0-1

[Event "Early-Titled-Tuesday-Blitz-February-06-2024"]
[Site "Chess.com"]
[Date "2024.02.06"]
[Round "9"]
[White "Juicy_Fork"]
[Black "Keeper0416"]
[Result "0-1"]
[WhiteElo "2449"]
[BlackElo "2574"]
[TimeControl "180+1"]
[EndTime "9:46:21 PST"]
[Termination "Keeper0416 won on time"]

1. e4 {[%clk 0:02:56.8]} 1... e5 {[%clk 0:02:57.6]} 2. Nf3 {[%clk 0:02:56.5]}
2... Nc6 {[%clk 0:02:58.1]} 3. Bb5 {[%clk 0:02:56]} 3... Nf6 {[%clk 0:02:58.3]}
4. d3 {[%clk 0:02:52]} 4... Bc5 {[%clk 0:02:54.1]} 5. Bxc6 {[%clk 0:02:51]} 5...
dxc6 {[%clk 0:02:55]} 6. Nbd2 {[%clk 0:02:50.8]} 6... Ng4 {[%clk 0:02:25.5]} 7.
O-O {[%clk 0:02:49.5]} 7... h5 {[%clk 0:02:25.4]} 8. Nc4 {[%clk 0:02:44.5]} 8...
Qf6 {[%clk 0:02:23.2]} 9. h3 {[%clk 0:02:33.4]} 9... b5 {[%clk 0:02:06.1]} 10.
Bg5 {[%clk 0:02:24.4]} 10... Qg6 {[%clk 0:01:58.4]} 11. Ncd2 {[%clk 0:01:52.8]}
11... f6 {[%clk 0:01:54.3]} 12. Bh4 {[%clk 0:01:52.5]} 12... Nh6 {[%clk
0:01:32]} 13. Kh1 {[%clk 0:01:43.1]} 13... Be6 {[%clk 0:01:28.9]} 14. Nb3 {[%clk
0:01:38.4]} 14... Bb6 {[%clk 0:01:28.4]} 15. a4 {[%clk 0:01:31.7]} 15... a5
{[%clk 0:01:24.5]} 16. d4 {[%clk 0:01:26.8]} 16... Rd8 {[%clk 0:00:54.6]} 17.
axb5 {[%clk 0:01:21.9]} 17... cxb5 {[%clk 0:00:54]} 18. d5 {[%clk 0:01:21.9]}
18... Qxe4 {[%clk 0:00:52.6]} 19. Re1 {[%clk 0:00:56.8]} 19... Qxd5 {[%clk
0:00:46.4]} 20. Qe2 {[%clk 0:00:56.4]} 20... a4 {[%clk 0:00:31.3]} 21. Nbd2
{[%clk 0:00:30.7]} 21... Nf5 {[%clk 0:00:26.7]} 22. Ne4 {[%clk 0:00:24.2]} 22...
Kf7 {[%clk 0:00:13.3]} 23. Rad1 {[%clk 0:00:21.1]} 23... Qc4 {[%clk 0:00:10.8]}
24. Neg5+ {[%clk 0:00:19.4]} 24... fxg5 {[%clk 0:00:09]} 25. Nxe5+ {[%clk
0:00:19.5]} 25... Kf6 {[%clk 0:00:05]} 26. Nxc4 {[%clk 0:00:19.3]} 26... Bxc4
{[%clk 0:00:05]} 27. Qe5+ {[%clk 0:00:18.8]} 27... Kg6 {[%clk 0:00:05.5]} 28.
Rxd8 {[%clk 0:00:15.5]} 28... Rxd8 {[%clk 0:00:06.4]} 29. Bg3 {[%clk 0:00:15.8]}
29... h4 {[%clk 0:00:03.3]} 30. Bh2 {[%clk 0:00:15.7]} 30... Bd4 {[%clk
0:00:03.4]} 31. Qxc7 {[%clk 0:00:14.2]} 31... Bf6 {[%clk 0:00:02.9]} 32. Be5
{[%clk 0:00:12.7]} 32... Re8 {[%clk 0:00:02.6]} 33. Bc3 {[%clk 0:00:08.9]} 33...
Rxe1+ {[%clk 0:00:02.7]} 34. Bxe1 {[%clk 0:00:09.8]} 34... Bxb2 {[%clk
0:00:03.4]} 35. Qb6+ {[%clk 0:00:06.3]} 35... Kh7 {[%clk 0:00:02.8]} 36. Qc5
{[%clk 0:00:05.9]} 36... Kg6 {[%clk 0:00:02.3]} 37. Bb4 {[%clk 0:00:04.8]} 37...
Bf6 {[%clk 0:00:02.8]} 38. Kh2 {[%clk 0:00:03.2]} 38... Be6 {[%clk 0:00:02.7]}
39. g4 {[%clk 0:00:03.5]} 39... Nd4 {[%clk 0:00:02.8]} 40. Kg2 {[%clk
0:00:01.5]} 40... Be5 {[%clk 0:00:02.8]} 41. Kf1 {[%clk 0:00:01.9]} 41... Bc4+
{[%clk 0:00:01.9]} 42. Ke1 {[%clk 0:00:01.8]} 42... Bf6 {[%clk 0:00:02.8]} 43.
Kd1 {[%clk 0:00:02.2]} 43... Nf3 {[%clk 0:00:03.3]} 44. Qb6 {[%clk 0:00:01.9]}
44... Nd4 {[%clk 0:00:03.6]} 45. Bc3 {[%clk 0:00:02.4]} 45... Nf3 {[%clk
0:00:03.7]} 46. Bxf6 {[%clk 0:00:02.7]} 46... gxf6 {[%clk 0:00:04.6]} 47. Qe3
{[%clk 0:00:03.4]} 47... Ne5 {[%clk 0:00:05.5]} 48. Qe4+ {[%clk 0:00:04]} 48...
Kf7 {[%clk 0:00:05.7]} 49. Kd2 {[%clk 0:00:04.6]} 49... Ke6 {[%clk 0:00:06]} 50.
Kc3 {[%clk 0:00:04.7]} 50... Bd5 {[%clk 0:00:06.4]} 51. Qb4 {[%clk 0:00:04.7]}
51... Bc4 {[%clk 0:00:06.2]} 52. Qa5 {[%clk 0:00:05.1]} 52... Kd5 {[%clk
0:00:06.5]} 53. Qd8+ {[%clk 0:00:04.8]} 53... Ke4 {[%clk 0:00:06.4]} 54. Qd4+
{[%clk 0:00:03.2]} 54... Kf3 {[%clk 0:00:06.5]} 55. Qe3+ {[%clk 0:00:03.9]}
55... Kg2 {[%clk 0:00:07]} 56. f4 {[%clk 0:00:04.8]} 56... Nf3 {[%clk
0:00:06.5]} 57. fxg5 {[%clk 0:00:04.2]} 57... fxg5 {[%clk 0:00:07.4]} 58. Qe4
{[%clk 0:00:04.1]} 58... Kg3 {[%clk 0:00:07.8]} 59. Kb4 {[%clk 0:00:04.3]} 59...
Kg2 {[%clk 0:00:07.2]} 60. c3 {[%clk 0:00:04]} 60... Kg3 {[%clk 0:00:07.5]} 61.
Ka3 {[%clk 0:00:03.7]} 61... Ng1 {[%clk 0:00:07.9]} 62. Qf5 {[%clk 0:00:03.2]}
62... Nxh3 {[%clk 0:00:07.6]} 63. Qe5+ {[%clk 0:00:03.6]} 63... Nf4 {[%clk
0:00:08]} 64. Qxg5 {[%clk 0:00:03.4]} 64... h3 {[%clk 0:00:08.7]} 65. Qh6 {[%clk
0:00:02.1]} 65... h2 {[%clk 0:00:08.5]} 66. g5 {[%clk 0:00:01.8]} 66... Bd5
{[%clk 0:00:09.1]} 67. g6 {[%clk 0:00:02.4]} 67... h1=Q {[%clk 0:00:09.5]} 68.
Qg5+ {[%clk 0:00:02.7]} 68... Kf3 {[%clk 0:00:09.4]} 69. g7 {[%clk 0:00:03.6]}
69... Qa1+ {[%clk 0:00:09.4]} 70. Kb4 {[%clk 0:00:04.1]} 70... Qb2+ {[%clk
0:00:10]} 71. Ka5 {[%clk 0:00:04.5]} 71... Qxc3+ {[%clk 0:00:10.4]} 72. Ka6
{[%clk 0:00:04.9]} 72... Qc6+ {[%clk 0:00:10.5]} 73. Ka5 {[%clk 0:00:05.4]}
73... Qc4 {[%clk 0:00:10.1]} 74. Kb6 {[%clk 0:00:02.2]} 74... Bg8 {[%clk
0:00:10]} 75. Qe7 {[%clk 0:00:01.4]} 75... Qb3 {[%clk 0:00:09.1]} 0-1

[Event "Early-Titled-Tuesday-Blitz-February-06-2024"]
[Site "Chess.com"]
[Date "2024.02.06"]
[Round "9"]
[White "MokshAD1603"]
[Black "Mistango"]
[Result "1/2-1/2"]
[WhiteElo "2604"]
[BlackElo "2486"]
[TimeControl "180+1"]
[EndTime "9:46:36 PST"]
[Termination "Game drawn - insufficient material"]

1. e4 {[%clk 0:02:51.5]} 1... e5 {[%clk 0:02:58.3]} 2. Nf3 {[%clk 0:02:46.7]}
2... Nc6 {[%clk 0:02:58.2]} 3. Bb5 {[%clk 0:02:45.1]} 3... Nf6 {[%clk
0:02:57.4]} 4. O-O {[%clk 0:02:43.1]} 4... Nxe4 {[%clk 0:02:57.2]} 5. Re1 {[%clk
0:02:43.8]} 5... Nd6 {[%clk 0:02:56.9]} 6. Nxe5 {[%clk 0:02:44.3]} 6... Be7
{[%clk 0:02:55]} 7. Bf1 {[%clk 0:02:44.8]} 7... Nxe5 {[%clk 0:02:54.5]} 8. Rxe5
{[%clk 0:02:45.7]} 8... O-O {[%clk 0:02:55]} 9. d4 {[%clk 0:02:39.1]} 9... Ne8
{[%clk 0:02:53]} 10. Nc3 {[%clk 0:02:31.5]} 10... Nf6 {[%clk 0:02:50.8]} 11. Bd3
{[%clk 0:02:19.9]} 11... d6 {[%clk 0:02:43.5]} 12. Re1 {[%clk 0:02:20.5]} 12...
Bg4 {[%clk 0:02:35]} 13. Ne2 {[%clk 0:02:19.1]} 13... Qd7 {[%clk 0:02:32.5]} 14.
c3 {[%clk 0:02:16.5]} 14... Rae8 {[%clk 0:02:26.7]} 15. Qb3 {[%clk 0:02:15.6]}
15... c6 {[%clk 0:02:24.5]} 16. Nf4 {[%clk 0:02:14.8]} 16... Nh5 {[%clk
0:02:18.8]} 17. Qc2 {[%clk 0:02:07.8]} 17... Nxf4 {[%clk 0:02:00]} 18. Bxf4
{[%clk 0:01:57.2]} 18... h6 {[%clk 0:01:51]} 19. h3 {[%clk 0:01:36.4]} 19... Be6
{[%clk 0:01:48.8]} 20. Re3 {[%clk 0:01:37]} 20... Bg5 {[%clk 0:01:46.8]} 21.
Bxg5 {[%clk 0:01:29.1]} 21... hxg5 {[%clk 0:01:46.3]} 22. Rg3 {[%clk 0:01:26.1]}
22... Qd8 {[%clk 0:01:43.7]} 23. Qd2 {[%clk 0:01:21.1]} 23... f6 {[%clk
0:01:38]} 24. c4 {[%clk 0:00:47.1]} 24... d5 {[%clk 0:01:31.5]} 25. c5 {[%clk
0:00:46.8]} 25... Kh8 {[%clk 0:00:54.1]} 26. f4 {[%clk 0:00:29.3]} 26... gxf4
{[%clk 0:00:47.5]} 27. Qxf4 {[%clk 0:00:28.8]} 27... g5 {[%clk 0:00:47.2]} 28.
Qf2 {[%clk 0:00:28.4]} 28... f5 {[%clk 0:00:41]} 29. Re3 {[%clk 0:00:27.7]}
29... Bc8 {[%clk 0:00:37.4]} 30. Rae1 {[%clk 0:00:26.4]} 30... f4 {[%clk
0:00:36.9]} 31. Re5 {[%clk 0:00:16.5]} 31... Rxe5 {[%clk 0:00:33.9]} 32. Rxe5
{[%clk 0:00:17.4]} 32... Qf6 {[%clk 0:00:32.8]} 33. Qf3 {[%clk 0:00:17.4]} 33...
Kg7 {[%clk 0:00:29.7]} 34. Qe2 {[%clk 0:00:15]} 34... Bd7 {[%clk 0:00:27.1]} 35.
Qh5 {[%clk 0:00:14.1]} 35... Rh8 {[%clk 0:00:26.4]} 36. Rxg5+ {[%clk 0:00:10.8]}
36... Kf8 {[%clk 0:00:25.4]} 37. Qg6 {[%clk 0:00:09.9]} 37... Qxg6 {[%clk
0:00:17.6]} 38. Rxg6 {[%clk 0:00:10.8]} 38... Kf7 {[%clk 0:00:15.4]} 39. Kf2
{[%clk 0:00:10]} 39... Rh4 {[%clk 0:00:13]} 40. Rg5 {[%clk 0:00:09.9]} 40... f3
{[%clk 0:00:13.2]} 41. Kxf3 {[%clk 0:00:09.4]} 41... Rxd4 {[%clk 0:00:13.3]} 42.
Ke3 {[%clk 0:00:10.1]} 42... Rh4 {[%clk 0:00:13.1]} 43. Rg3 {[%clk 0:00:10.4]}
43... Rh6 {[%clk 0:00:12]} 44. Rf3+ {[%clk 0:00:10.8]} 44... Ke7 {[%clk
0:00:12.4]} 45. g4 {[%clk 0:00:10.7]} 45... Be6 {[%clk 0:00:11.5]} 46. Kd4
{[%clk 0:00:10.9]} 46... b6 {[%clk 0:00:10.9]} 47. b4 {[%clk 0:00:10.9]} 47...
Rh8 {[%clk 0:00:10.8]} 48. Re3 {[%clk 0:00:10.4]} 48... bxc5+ {[%clk 0:00:09.7]}
49. Kxc5 {[%clk 0:00:09]} 49... Kd7 {[%clk 0:00:10.3]} 50. Rf3 {[%clk
0:00:06.8]} 50... Rh6 {[%clk 0:00:07.6]} 51. a4 {[%clk 0:00:07.4]} 51... Rh8
{[%clk 0:00:07.4]} 52. b5 {[%clk 0:00:07.5]} 52... cxb5 {[%clk 0:00:07.6]} 53.
Bxb5+ {[%clk 0:00:08.4]} 53... Ke7 {[%clk 0:00:07.2]} 54. Re3 {[%clk 0:00:08.9]}
54... Kf6 {[%clk 0:00:07.4]} 55. Kd6 {[%clk 0:00:09.1]} 55... Rd8+ {[%clk
0:00:07.4]} 56. Kc7 {[%clk 0:00:09.7]} 56... Rh8 {[%clk 0:00:07.7]} 57. Kb7
{[%clk 0:00:10.1]} 57... d4 {[%clk 0:00:08.1]} 58. Rd3 {[%clk 0:00:10.1]} 58...
Ke5 {[%clk 0:00:08.2]} 59. Kxa7 {[%clk 0:00:10.7]} 59... Bd5 {[%clk 0:00:08.4]}
60. Kb6 {[%clk 0:00:10.9]} 60... Be4 {[%clk 0:00:09]} 61. Rg3 {[%clk 0:00:10.2]}
61... Kf4 {[%clk 0:00:07.9]} 62. Rg1 {[%clk 0:00:10.9]} 62... Rxh3 {[%clk
0:00:07.9]} 63. g5 {[%clk 0:00:10.8]} 63... d3 {[%clk 0:00:06.8]} 64. g6 {[%clk
0:00:10.5]} 64... Rh6 {[%clk 0:00:05.8]} 65. Kc5 {[%clk 0:00:08.6]} 65... Rxg6
{[%clk 0:00:05.2]} 66. Rxg6 {[%clk 0:00:08.1]} 66... Bxg6 {[%clk 0:00:06.1]} 67.
Kd4 {[%clk 0:00:07.7]} 67... d2 {[%clk 0:00:06.1]} 68. Be2 {[%clk 0:00:08]}
68... Bf5 {[%clk 0:00:05.8]} 69. Kc3 {[%clk 0:00:07.8]} 69... Ke3 {[%clk
0:00:06]} 70. Bd1 {[%clk 0:00:07.4]} 70... Bd3 {[%clk 0:00:05.6]} 71. a5 {[%clk
0:00:07.8]} 71... Be2 {[%clk 0:00:05.9]} 72. Bb3 {[%clk 0:00:08.2]} 72... Ba6
{[%clk 0:00:05.9]} 73. Kb4 {[%clk 0:00:08.1]} 73... Bd3 {[%clk 0:00:05]} 74. Kc5
{[%clk 0:00:07.9]} 74... Be2 {[%clk 0:00:04.2]} 75. Kb6 {[%clk 0:00:08.1]} 75...
Kd4 {[%clk 0:00:04.4]} 76. a6 {[%clk 0:00:07.9]} 76... Kc3 {[%clk 0:00:03.7]}
77. Ba4 {[%clk 0:00:08.2]} 77... d1=Q {[%clk 0:00:02.7]} 78. Bxd1 {[%clk
0:00:08]} 78... Bxd1 {[%clk 0:00:03.6]} 79. a7 {[%clk 0:00:08.4]} 79... Bf3
{[%clk 0:00:04.5]} 80. Kc7 {[%clk 0:00:09.1]} 80... Kb4 {[%clk 0:00:05]} 81. Kb8
{[%clk 0:00:10]} 81... Ka5 {[%clk 0:00:05.4]} 82. a8=Q+ {[%clk 0:00:10.9]} 82...
Bxa8 {[%clk 0:00:04.6]} 1/2-1/2